[Event "SWE-ch 65 2019"]
[Site "Eskilstuna"]
[Date "2019.07.06"]
[Round "1.1"]
[White "Bellon Lopez, Juan Manuel"]
[Black "Olsson, Sture"]
[Result "1-0"]
[ECO "D00"]
[WhiteElo "2343"]
[BlackElo "1895"]
[Annotator "NA"]
[PlyCount "67"]
[EventDate "2019.07.06"]
[EventType "tourn"]
[EventCountry "SWE"]
[SourceTitle "playchess.com"]
[Source "ChessBase"]
[SourceQuality "1"]
[TimeControl "40/5400+30:1800+30"]

1. d4 {[%emt 0:00:00]} Nf6 {[%emt 0:00:00]} 2. Bg5 {[%emt 0:00:30]} d5 {[%emt 0:00:30]} 3. Bxf6 {[%emt 0:00:30]} gxf6 {[%emt 0:00:30]} 4. e3 {[%emt 0:00:04]} e6 {[%emt 0:09:02]} 5. c4 {[%emt 0:01:10]} c6 {[%emt 0:06:08]} 6. Nc3 {[%emt 0:00:36]} Nd7 {[%emt 0:09:27]} 7. g4 {[%emt 0:16:19]} Qa5 {[%emt 0:10:00]} 8. a3 {[%emt 0:00:56]} a6 {[%emt 0:03:41]} 9. b4 {[%emt 0:04:12]} Qd8 {[%emt 0:03:01]} 10. c5 {[%emt 0:01:53]} Bg7 {[%emt 0:09:23]} 11. Nge2 {[%emt 0:10:46]} O-O {[%emt 0:04:20]} 12. Ng3 {[%emt 0:01:03]} Re8 {[%emt 0:00:36]} 13. Bd3 {[%emt 0:15:24]} e5 {[%emt 0:09:50]} 14. Kf1 {[%emt 0:01:40]} Nf8 {[%emt 0:01:26]} 15. Bf5 {[%emt 0:05:53]} Ng6 {[%emt 0:03:05]} 16. Bxc8 {[%emt 0:01:29]} Rxc8 {[%emt 0:11:14]} 17. Nf5 {[%emt 0:00:07]} Bf8 {[%emt 0:00:28]} 18. Qf3 {[%emt 0:03:40]} Re6 {[%emt 0:02:43]} 19. h4 {[%emt 0:02:19]} Ra8 {[%emt 0:01:01]} 20. h5 {[%emt 0:00:28]} Ne7 {[%emt 0:00:06]} 21. Nd6 {[%emt 0:02:57]} Rb8 {[%emt 0:03:26]} 22. dxe5 {[%emt 0:05:42]} Nc8 {[%emt 0:00:06]} 23. Ne2 {[%emt 0:07:36]} Rxe5 {[%emt 0:02:43]} 24. Nxc8 {[%emt 0:01:36]} Rxc8 {[%emt 0:00:13]} 25. Nd4 {[%emt 0:00:04]} Ra8 {[%emt 0:03:58]} 26. Rb1 {[%emt 0:02:08]} Qe7 {[%emt 0:01:20]} 27. h6 {[%emt 0:01:55]} Rg5 {[%emt 0:00:28]} 28. Qf4 {[%emt 0:03:11]} Qe4 {[%emt 0:02:01]} 29. Qxe4 {[%emt 0:01:10]} dxe4 {[%emt 0:00:01]} 30. Rh4 {[%emt 0:00:40]} Rd8 {[%emt 0:00:56]} 31. Ke2 {[%emt 0:00:28]} Rdd5 {[%emt 0:01:11]} 32. Nf5 {[%emt 0:01:22]} Rg6 {[%emt 0:00:52]} 33. Rd1 {[%emt 0:01:15]} Rg5 {[%emt 0:01:00]} 34. Rd4 {[%emt 0:00:31]} 1-0

[Event "SWE-ch 65 2019"]
[Site "Eskilstuna"]
[Date "2019.07.06"]
[Round "1.2"]
[White "Lundquist, Leif"]
[Black "Blomstrom, Lars"]
[Result "0-1"]
[ECO "B88"]
[WhiteElo "1885"]
[BlackElo "2153"]
[Annotator "NA"]
[PlyCount "64"]
[EventDate "2019.07.06"]
[EventType "tourn"]
[EventCountry "SWE"]
[SourceTitle "playchess.com"]
[Source "ChessBase"]
[SourceQuality "1"]
[TimeControl "40/5400+30:1800+30"]

1. e4 {[%emt 0:00:00]} c5 {[%emt 0:00:00]} 2. Nf3 {[%emt 0:00:00]} Nc6 {[%emt 0:01:10]} 3. d4 {[%emt 0:00:00]} cxd4 {[%emt 0:00:04]} 4. Nxd4 {[%emt 0:00:00]} Nf6 {[%emt 0:00:52]} 5. Nc3 {[%emt 0:00:09]} d6 {[%emt 0:01:59]} 6. Bc4 {[%emt 0:00:31]} e6 {[%emt 0:00:20]} 7. Bb3 {[%emt 0:03:23]} a6 {[%emt 0:02:51]} 8. O-O {[%emt 0:02:05]} Qc7 {[%emt 0:00:48]} 9. Kh1 {[%emt 0:07:35]} Be7 {[%emt 0:02:59]} 10. f4 {[%emt 0:04:14]} O-O {[%emt 0:03:48]} 11. f5 {[%emt 0:09:33]} Nxd4 {[%emt 0:04:55]} 12. Qxd4 {[%emt 0:00:24]} b5 {[%emt 0:07:49]} 13. fxe6 {[%emt 0:08:23]} Bxe6 {[%emt 0:06:17]} 14. Bf4 {[%emt 0:09:47]} Nd7 {[%emt 0:17:41]} 15. Rad1 {[%emt 0:12:25]} Ne5 {[%emt 0:01:27]} 16. Nd5 {[%emt 0:05:15]} Bxd5 {[%emt 0:00:46]} 17. Qxd5 {[%emt 0:00:14]} Rad8 {[%emt 0:08:01]} 18. a4 {[%emt 0:08:31]} bxa4 {[%emt 0:10:17]} 19. Bxa4 {[%emt 0:00:14]} Bf6 {[%emt 0:00:28]} 20. Bb3 {[%emt 0:04:18]} Qe7 {[%emt 0:08:30]} 21. Ra1 {[%emt 0:08:13]} Ra8 {[%emt 0:12:59]} 22. Ra5 {[%emt 0:05:31]} Rfd8 {[%emt 0:04:16]} 23. Rfa1 {[%emt 0:04:11]} Ng4 {[%emt 0:01:49]} 24. Rxa6 {[%emt 0:02:57]} Rxa6 {[%emt 0:00:27]} 25. Rxa6 {[%emt 0:00:03]} Nf2+ {[%emt 0:00:55]} 26. Kg1 {[%emt 0:00:08]} Nxe4 {[%emt 0:00:33]} 27. Ra1 {[%emt 0:01:31]} Ng5 {[%emt 0:00:53]} 28. Rd1 {[%emt 0:01:39]} Ne6 {[%emt 0:00:15]} 29. Bxd6 {[%emt 0:02:01]} Qa7+ {[%emt 0:00:10]} 30. Kh1 {[%emt 0:00:09]} Be7 {[%emt 0:00:35]} 31. Qe5 {[%emt 0:01:24]} Bxd6 {[%emt 0:00:26]} 32. Bxe6 {[%emt 0:00:36]} Qe7 {[%emt 0:00:40]} 0-1

[Event "SWE-ch 65 2019"]
[Site "Eskilstuna"]
[Date "2019.07.06"]
[Round "1.3"]
[White "Gillefalk, Bjorn"]
[Black "Andersson, Sven-Olof"]
[Result "1-0"]
[ECO "B40"]
[WhiteElo "2071"]
[BlackElo "1885"]
[Annotator "NA"]
[PlyCount "105"]
[EventDate "2019.07.06"]
[EventType "tourn"]
[EventCountry "SWE"]
[SourceTitle "playchess.com"]
[Source "ChessBase"]
[SourceQuality "1"]
[TimeControl "40/5400+30:1800+30"]

1. e4 {[%emt 0:00:00]} c5 {[%emt 0:00:00]} 2. Nf3 {[%emt 0:00:00]} e6 {[%emt 0:00:00]} 3. d3 {[%emt 0:00:20]} Nc6 {[%emt 0:00:27]} 4. g3 {[%emt 0:00:35]} g6 {[%emt 0:02:44]} 5. Bg2 {[%emt 0:00:36]} Bg7 {[%emt 0:00:11]} 6. Nbd2 {[%emt 0:04:13]} Nge7 {[%emt 0:00:37]} 7. h4 {[%emt 0:00:10]} h5 {[%emt 0:04:04]} 8. O-O {[%emt 0:02:34]} d6 {[%emt 0:01:26]} 9. c3 {[%emt 0:07:03]} e5 {[%emt 0:06:41]} 10. Ng5 {[%emt 0:11:54]} f6 {[%emt 0:03:03]} 11. Ngf3 {[%emt 0:02:32]} Bg4 {[%emt 0:04:04]} 12. Qb3 {[%emt 0:07:53]} Qd7 {[%emt 0:03:10]} 13. d4 {[%emt 0:04:07]} cxd4 {[%emt 0:17:09]} 14. cxd4 {[%emt 0:00:10]} exd4 {[%emt 0:01:08]} 15. Re1 {[%emt 0:07:01]} Be6 {[%emt 0:01:34]} 16. Qd1 {[%emt 0:01:37]} Rc8 {[%emt 0:05:44]} 17. Bf1 {[%emt 0:13:56]} O-O {[%emt 0:10:58]} 18. Nb3 {[%emt 0:02:33]} Bg4 {[%emt 0:02:41]} 19. Be2 {[%emt 0:07:01]} Bxf3 {[%emt 0:10:21]} 20. Bxf3 {[%emt 0:00:08]} f5 {[%emt 0:00:12]} 21. exf5 {[%emt 0:05:24]} Qxf5 {[%emt 0:04:50]} 22. Bf4 {[%emt 0:01:21]} Be5 {[%emt 0:01:18]} 23. Re4 {[%emt 0:04:20]} Qh3 {[%emt 0:08:12]} 24. Bg2 {[%emt 0:01:44]} Qg4 {[%emt 0:00:40]} 25. Bf3 {[%emt 0:02:23]} Qh3 {[%emt 0:01:15]} 26. Bg2 {[%emt 0:03:11]} Qd7 {[%emt 0:02:32]} 27. Bg5 {[%emt 0:05:46]} Qf5 {[%emt 0:02:46]} 28. Bf4 {[%emt 0:02:29]} Qd7 {[%emt 0:00:25]} 29. Bg5 {[%emt 0:00:08]} Qf5 {[%emt 0:02:33]} 30. f4 {[%emt 0:00:09]} Bf6 {[%emt 0:00:23]} 31. Bxf6 {[%emt 0:02:09]} Qxf6 {[%emt 0:00:45]} 32. Nxd4 {[%emt 0:01:22]} d5 {[%emt 0:00:47]} 33. Re6 {[%emt 0:00:01]} Qxd4+ {[%emt 0:01:00]} 34. Qxd4 {[%emt 0:00:04]} Nxd4 {[%emt 0:00:08]} 35. Rxe7 {[%emt 0:00:01]} Rc2 {[%emt 0:01:25]} 36. Bxd5+ {[%emt 0:00:23]} Kh8 {[%emt 0:00:07]} 37. Rae1 {[%emt 0:00:40]} Rxb2 {[%emt 0:00:39]} 38. Rxb7 {[%emt 0:00:30]} Ne2+ {[%emt 0:00:32]} 39. Kf2 {[%emt 0:00:21]} Nxf4+ {[%emt 0:00:13]} 40. Rxb2 {[%emt 0:00:10]} Nxd5+ {[%emt 0:00:09]} 41. Kg2 {[%emt 0:30:36]} Rc8 {[%emt 0:31:01]} 42. Rb7 {[%emt 0:00:00]} a5 {[%emt 0:00:00]} 43. Ra7 {[%emt 0:00:00]} a4 {[%emt 0:00:00]} 44. Rxa4 {[%emt 0:00:00]} Rc2+ {[%emt 0:00:00]} 45. Kf3 {[%emt 0:00:00]} Rc3+ {[%emt 0:00:00]} 46. Ke4 {[%emt 0:00:00]} Nf6+ {[%emt 0:00:00]} 47. Ke5 {[%emt 0:00:00]} Rc6 {[%emt 0:00:00]} 48. Ra7 {[%emt 0:00:00]} Ng4+ {[%emt 0:00:00]} 49. Kd4 {[%emt 0:00:00]} Rc8 {[%emt 0:00:00]} 50. Ree7 {[%emt 0:00:00]} Rd8+ {[%emt 0:00:00]} 51. Rad7 {[%emt 0:00:00]} Rxd7+ {[%emt 0:00:00]} 52. Rxd7 {[%emt 0:00:00]} Nf6 {[%emt 0:00:00]} 53. Rf7 {[%emt 0:00:00]} 1-0

[Event "SWE-ch 65 2019"]
[Site "Eskilstuna"]
[Date "2019.07.07"]
[Round "2.1"]
[White "Nilsson, Weine"]
[Black "Bellon Lopez, Juan Manuel"]
[Result "0-1"]
[ECO "B27"]
[WhiteElo "1922"]
[BlackElo "2343"]
[Annotator "NA"]
[PlyCount "72"]
[EventDate "2019.07.06"]
[EventType "tourn"]
[EventCountry "SWE"]
[SourceTitle "playchess.com"]
[Source "ChessBase"]
[SourceQuality "1"]
[TimeControl "40/5400+30:1800+30"]

1. e4 {[%emt 0:00:00]} c5 {[%emt 0:00:16]} 2. c3 {[%emt 0:00:01]} g6 {[%emt 0:00:32]} 3. d4 {[%emt 0:00:42]} cxd4 {[%emt 0:00:06]} 4. cxd4 {[%emt 0:00:07]} d5 {[%emt 0:00:02]} 5. e5 {[%emt 0:01:16]} Bg7 {[%emt 0:01:00]} 6. Nf3 {[%emt 0:01:34]} Bg4 {[%emt 0:01:12]} 7. Nbd2 {[%emt 0:01:41]} Nc6 {[%emt 0:00:53]} 8. Bb5 {[%emt 0:01:25]} Qb6 {[%emt 0:01:23]} 9. Bxc6+ {[%emt 0:04:34]} Qxc6 {[%emt 0:00:09]} 10. O-O {[%emt 0:02:26]} Rc8 {[%emt 0:04:49]} 11. h3 {[%emt 0:04:06]} Bf5 {[%emt 0:00:23]} 12. Qe2 {[%emt 0:00:41]} Nh6 {[%emt 0:04:26]} 13. Ne1 {[%emt 0:02:39]} O-O {[%emt 0:01:06]} 14. f4 {[%emt 0:00:59]} f6 {[%emt 0:00:55]} 15. Rf3 {[%emt 0:05:32]} Qb6 {[%emt 0:08:22]} 16. Nb3 {[%emt 0:01:51]} Be4 {[%emt 0:02:29]} 17. Rf2 {[%emt 0:05:10]} Nf5 {[%emt 0:01:11]} 18. Qd1 {[%emt 0:03:05]} Rc4 {[%emt 0:02:58]} 19. Nf3 {[%emt 0:06:52]} Bxf3 {[%emt 0:11:25]} 20. Qxf3 {[%emt 0:01:02]} e6 {[%emt 0:00:06]} 21. Be3 {[%emt 0:03:12]} Rfc8 {[%emt 0:18:57]} 22. Re1 {[%emt 0:12:48]} Ra4 {[%emt 0:05:34]} 23. Nc1 {[%emt 0:05:01]} Nxe3 {[%emt 0:01:31]} 24. Qxe3 {[%emt 0:00:45]} fxe5 {[%emt 0:01:03]} 25. fxe5 {[%emt 0:00:39]} Qxd4 {[%emt 0:01:44]} 26. Qxd4 {[%emt 0:02:13]} Rxd4 {[%emt 0:00:06]} 27. Nb3 {[%emt 0:02:33]} Ra4 {[%emt 0:00:15]} 28. a3 {[%emt 0:00:56]} b6 {[%emt 0:00:12]} 29. Rfe2 {[%emt 0:00:50]} Rf4 {[%emt 0:00:56]} 30. Rc1 {[%emt 0:00:34]} Rxc1+ {[%emt 0:04:34]} 31. Nxc1 {[%emt 0:00:30]} Re4 {[%emt 0:00:08]} 32. Rc2 {[%emt 0:01:36]} Bxe5 {[%emt 0:00:19]} 33. Ne2 {[%emt 0:00:44]} Rc4 {[%emt 0:00:23]} 34. Rd2 {[%emt 0:00:39]} Kf7 {[%emt 0:00:23]} 35. Kf2 {[%emt 0:00:26]} a5 {[%emt 0:00:23]} 36. Kf3 {[%emt 0:00:17]} a4 {[%emt 0:00:27]} 0-1

[Event "SWE-ch 65 2019"]
[Site "Eskilstuna"]
[Date "2019.07.07"]
[Round "2.2"]
[White "Blomstrom, Lars"]
[Black "Westin, Ake"]
[Result "1/2-1/2"]
[ECO "B08"]
[WhiteElo "2153"]
[BlackElo "1975"]
[Annotator "NA"]
[PlyCount "45"]
[EventDate "2019.07.06"]
[EventType "tourn"]
[EventCountry "SWE"]
[SourceTitle "playchess.com"]
[Source "ChessBase"]
[SourceQuality "1"]
[TimeControl "40/5400+30:1800+30"]

1. e4 {[%emt 0:00:00]} Nc6 {[%emt 0:00:02]} 2. Nf3 {[%emt 0:01:25]} d6 {[%emt 0:00:26]} 3. d4 {[%emt 0:02:32]} Nf6 {[%emt 0:00:21]} 4. Nc3 {[%emt 0:00:31]} g6 {[%emt 0:00:24]} 5. h3 {[%emt 0:01:14]} Bg7 {[%emt 0:00:27]} 6. Be3 {[%emt 0:03:21]} O-O {[%emt 0:02:45]} 7. d5 {[%emt 0:13:27]} Nb8 {[%emt 0:03:30]} 8. Qd2 {[%emt 0:01:30]} a6 {[%emt 0:05:29]} 9. Bh6 {[%emt 0:04:41]} b5 {[%emt 0:01:16]} 10. a3 {[%emt 0:00:44]} c5 {[%emt 0:02:37]} 11. dxc6 {[%emt 0:05:10]} Nxc6 {[%emt 0:02:26]} 12. Bxg7 {[%emt 0:00:15]} Kxg7 {[%emt 0:00:13]} 13. Be2 {[%emt 0:01:58]} Bb7 {[%emt 0:02:35]} 14. Qe3 {[%emt 0:07:43]} Qb8 {[%emt 0:12:24]} 15. O-O {[%emt 0:08:33]} Qa7 {[%emt 0:02:45]} 16. Qxa7 {[%emt 0:02:57]} Rxa7 {[%emt 0:00:14]} 17. Rfe1 {[%emt 0:06:57]} Rc8 {[%emt 0:02:53]} 18. Bd3 {[%emt 0:03:33]} Ba8 {[%emt 0:10:05]} 19. e5 {[%emt 0:07:55]} dxe5 {[%emt 0:06:41]} 20. Nxe5 {[%emt 0:00:12]} Nxe5 {[%emt 0:00:18]} 21. Rxe5 {[%emt 0:00:03]} e6 {[%emt 0:00:27]} 22. Ree1 {[%emt 0:10:36]} Nd7 {[%emt 0:03:03]} 23. Rad1 {[%emt 0:02:36]} 1/2-1/2

[Event "SWE-ch 65 2019"]
[Site "Eskilstuna"]
[Date "2019.07.07"]
[Round "2.3"]
[White "Salholm, Soren"]
[Black "Gillefalk, Bjorn"]
[Result "1-0"]
[ECO "B31"]
[WhiteElo "1875"]
[BlackElo "2071"]
[Annotator "NA"]
[PlyCount "69"]
[EventDate "2019.07.06"]
[EventType "tourn"]
[EventCountry "SWE"]
[SourceTitle "playchess.com"]
[Source "ChessBase"]
[SourceQuality "1"]
[TimeControl "40/5400+30:1800+30"]

1. e4 {[%emt 0:00:00]} c5 {[%emt 0:00:00]} 2. Nf3 {[%emt 0:00:07]} Nc6 {[%emt 0:00:00]} 3. Bb5 {[%emt 0:00:37]} g6 {[%emt 0:00:00]} 4. O-O {[%emt 0:01:10]} Bg7 {[%emt 0:00:08]} 5. Re1 {[%emt 0:02:32]} e5 {[%emt 0:00:06]} 6. c3 {[%emt 0:02:41]} Nge7 {[%emt 0:01:11]} 7. d3 {[%emt 0:01:25]} O-O {[%emt 0:01:13]} 8. Be3 {[%emt 0:10:35]} d6 {[%emt 0:19:47]} 9. Qc1 {[%emt 0:18:55]} Bg4 {[%emt 0:11:24]} 10. Nfd2 {[%emt 0:00:59]} h6 {[%emt 0:06:01]} 11. f3 {[%emt 0:01:25]} Bc8 {[%emt 0:03:05]} 12. Nf1 {[%emt 0:01:36]} Kh7 {[%emt 0:00:07]} 13. Bf2 {[%emt 0:04:49]} f5 {[%emt 0:07:28]} 14. Rd1 {[%emt 0:11:48]} a6 {[%emt 0:10:32]} 15. Ba4 {[%emt 0:00:48]} f4 {[%emt 0:02:29]} 16. a3 {[%emt 0:00:37]} Be6 {[%emt 0:02:19]} 17. Nbd2 {[%emt 0:01:45]} Rc8 {[%emt 0:03:52]} 18. Qb1 {[%emt 0:05:58]} Qe8 {[%emt 0:02:53]} 19. b4 {[%emt 0:03:59]} cxb4 {[%emt 0:01:15]} 20. axb4 {[%emt 0:01:08]} Qf7 {[%emt 0:02:16]} 21. Bb3 {[%emt 0:00:32]} d5 {[%emt 0:01:43]} 22. Bc5 {[%emt 0:01:04]} Rfd8 {[%emt 0:01:01]} 23. Qa2 {[%emt 0:01:29]} g5 {[%emt 0:01:12]} 24. Rac1 {[%emt 0:03:04]} Qg6 {[%emt 0:01:05]} 25. c4 {[%emt 0:02:10]} dxe4 {[%emt 0:01:20]} 26. Nxe4 {[%emt 0:00:29]} Nf5 {[%emt 0:00:16]} 27. Bb6 {[%emt 0:00:56]} Rg8 {[%emt 0:03:05]} 28. Nc5 {[%emt 0:01:47]} Bf7 {[%emt 0:00:19]} 29. Ne4 {[%emt 0:00:44]} Bf8 {[%emt 0:00:29]} 30. Bc5 {[%emt 0:02:00]} g4 {[%emt 0:03:30]} 31. fxg4 {[%emt 0:01:16]} Nxb4 {[%emt 0:01:09]} 32. Bxb4 {[%emt 0:01:32]} Bxb4 {[%emt 0:00:09]} 33. gxf5 {[%emt 0:00:20]} Qxf5 {[%emt 0:00:12]} 34. c5 {[%emt 0:01:14]} Bxb3 {[%emt 0:02:14]} 35. Qxb3 {[%emt 0:00:08]} 1-0

[Event "SWE-ch 65 2019"]
[Site "Eskilstuna"]
[Date "2019.07.07"]
[Round "2.4"]
[White "Dolata, Henryk"]
[Black "Vrabec, Josip"]
[Result "1-0"]
[ECO "B22"]
[WhiteElo "2061"]
[BlackElo "1953"]
[Annotator "NA"]
[PlyCount "79"]
[EventDate "2019.07.06"]
[EventType "tourn"]
[EventCountry "SWE"]
[SourceTitle "playchess.com"]
[Source "ChessBase"]
[SourceQuality "1"]
[TimeControl "40/5400+30:1800+30"]

1. e4 {[%emt 0:00:00]} c5 {[%emt 0:00:00]} 2. c3 {[%emt 0:00:13]} e5 {[%emt 0:00:56]} 3. Nf3 {[%emt 0:01:05]} Nc6 {[%emt 0:00:06]} 4. Bc4 {[%emt 0:02:21]} Be7 {[%emt 0:01:12]} 5. O-O {[%emt 0:04:12]} Nf6 {[%emt 0:00:07]} 6. Re1 {[%emt 0:05:14]} d6 {[%emt 0:00:35]} 7. h3 {[%emt 0:17:58]} O-O {[%emt 0:00:11]} 8. d3 {[%emt 0:04:33]} h6 {[%emt 0:00:28]} 9. Nbd2 {[%emt 0:01:28]} Na5 {[%emt 0:01:50]} 10. Bb5 {[%emt 0:01:30]} a6 {[%emt 0:00:27]} 11. Ba4 {[%emt 0:00:13]} b5 {[%emt 0:00:14]} 12. Bc2 {[%emt 0:00:01]} Be6 {[%emt 0:01:32]} 13. d4 {[%emt 0:03:28]} cxd4 {[%emt 0:05:57]} 14. cxd4 {[%emt 0:00:18]} exd4 {[%emt 0:00:39]} 15. Nxd4 {[%emt 0:00:32]} Bd7 {[%emt 0:02:38]} 16. b3 {[%emt 0:04:51]} Nc6 {[%emt 0:08:36]} 17. N2f3 {[%emt 0:00:32]} Nxd4 {[%emt 0:08:04]} 18. Nxd4 {[%emt 0:00:12]} Rc8 {[%emt 0:01:45]} 19. Bb2 {[%emt 0:08:26]} Bc6 {[%emt 0:07:50]} 20. Nxc6 {[%emt 0:09:36]} Rxc6 {[%emt 0:00:02]} 21. Rc1 {[%emt 0:01:22]} Kh8 {[%emt 0:15:45]} 22. Qd2 {[%emt 0:03:10]} Ng8 {[%emt 0:01:29]} 23. Bb1 {[%emt 0:09:04]} Rxc1 {[%emt 0:04:31]} 24. Rxc1 {[%emt 0:03:22]} Bf6 {[%emt 0:02:01]} 25. Ba3 {[%emt 0:00:34]} Be7 {[%emt 0:00:49]} 26. Rd1 {[%emt 0:08:14]} Qb6 {[%emt 0:08:32]} 27. Bb4 {[%emt 0:04:40]} Rc8 {[%emt 0:01:02]} 28. Kh1 {[%emt 0:02:02]} Bf8 {[%emt 0:09:12]} 29. f4 {[%emt 0:00:48]} Nf6 {[%emt 0:04:07]} 30. Qd3 {[%emt 0:01:04]} Re8 {[%emt 0:03:24]} 31. Qf3 {[%emt 0:01:36]} a5 {[%emt 0:02:41]} 32. Bc3 {[%emt 0:00:06]} Be7 {[%emt 0:00:17]} 33. e5 {[%emt 0:01:01]} Ng8 {[%emt 0:01:38]} 34. Qd5 {[%emt 0:01:17]} dxe5 {[%emt 0:01:09]} 35. Qxf7 {[%emt 0:01:06]} Rf8 {[%emt 0:00:18]} 36. Qd5 {[%emt 0:00:18]} Rd8 {[%emt 0:02:04]} 37. Qf3 {[%emt 0:00:01]} Rxd1+ {[%emt 0:00:36]} 38. Qxd1 {[%emt 0:00:01]} Qd6 {[%emt 0:02:54]} 39. Qc2 {[%emt 0:00:33]} e4 {[%emt 0:01:43]} 40. Qxe4 {[%emt 0:00:40]} 1-0

[Event "SWE-ch 65 2019"]
[Site "Eskilstuna"]
[Date "2019.07.08"]
[Round "3.1"]
[White "Bellon Lopez, Juan Manuel"]
[Black "Alquist, Erik"]
[Result "1/2-1/2"]
[ECO "E75"]
[WhiteElo "2343"]
[BlackElo "1976"]
[Annotator "NA"]
[PlyCount "63"]
[EventDate "2019.07.06"]
[EventType "tourn"]
[EventCountry "SWE"]
[SourceTitle "playchess.com"]
[Source "ChessBase"]
[SourceQuality "1"]
[TimeControl "40/5400+30:1800+30"]

1. c4 {[%emt 0:00:00]} Nf6 {[%emt 0:00:00]} 2. Nc3 {[%emt 0:00:00]} g6 {[%emt 0:00:00]} 3. e4 {[%emt 0:00:13]} d6 {[%emt 0:00:00]} 4. d4 {[%emt 0:00:06]} Bg7 {[%emt 0:00:05]} 5. Bg5 {[%emt 0:00:16]} O-O {[%emt 0:00:23]} 6. Qd2 {[%emt 0:00:03]} c5 {[%emt 0:00:50]} 7. d5 {[%emt 0:00:35]} a6 {[%emt 0:07:54]} 8. a4 {[%emt 0:03:56]} e6 {[%emt 0:01:47]} 9. Nf3 {[%emt 0:02:51]} exd5 {[%emt 0:00:18]} 10. exd5 {[%emt 0:00:04]} Re8+ {[%emt 0:02:15]} 11. Be2 {[%emt 0:00:04]} Bg4 {[%emt 0:05:26]} 12. O-O {[%emt 0:00:07]} Nbd7 {[%emt 0:01:47]} 13. Rae1 {[%emt 0:02:37]} Qb6 {[%emt 0:05:37]} 14. h3 {[%emt 0:06:47]} Bxf3 {[%emt 0:00:40]} 15. Bxf3 {[%emt 0:00:03]} Ne5 {[%emt 0:01:25]} 16. Be2 {[%emt 0:02:20]} Qb3 {[%emt 0:06:16]} 17. Qc1 {[%emt 0:20:18]} Rab8 {[%emt 0:27:24]} 18. a5 {[%emt 0:10:56]} b6 {[%emt 0:02:31]} 19. axb6 {[%emt 0:00:30]} Rxb6 {[%emt 0:00:45]} 20. Bxf6 {[%emt 0:29:43]} Bxf6 {[%emt 0:00:09]} 21. Ne4 {[%emt 0:01:38]} Bg7 {[%emt 0:01:32]} 22. Qf4 {[%emt 0:02:58]} Qxb2 {[%emt 0:10:43]} 23. g4 {[%emt 0:00:04]} Re7 {[%emt 0:07:53]} 24. Kg2 {[%emt 0:02:26]} Nd7 {[%emt 0:01:00]} 25. Bf3 {[%emt 0:01:46]} Qe5 {[%emt 0:01:18]} 26. Qc1 {[%emt 0:01:00]} Qd4 {[%emt 0:02:11]} 27. Rd1 {[%emt 0:00:55]} Qb2 {[%emt 0:01:25]} 28. Qg5 {[%emt 0:00:37]} Qe5 {[%emt 0:00:35]} 29. Qc1 {[%emt 0:01:42]} Qb2 {[%emt 0:01:08]} 30. Qg5 {[%emt 0:03:11]} Qe5 {[%emt 0:00:35]} 31. Qc1 {[%emt 0:02:21]} Nf6 {[%emt 0:01:54]} 32. Qc3 {[%emt 0:00:25]} 1/2-1/2

[Event "SWE-ch 65 2019"]
[Site "Eskilstuna"]
[Date "2019.07.08"]
[Round "3.2"]
[White "Salholm, Soren"]
[Black "Dolata, Henryk"]
[Result "1/2-1/2"]
[ECO "C07"]
[WhiteElo "1875"]
[BlackElo "2061"]
[Annotator "NA"]
[PlyCount "24"]
[EventDate "2019.07.06"]
[EventType "tourn"]
[EventCountry "SWE"]
[SourceTitle "playchess.com"]
[Source "ChessBase"]
[SourceQuality "1"]
[TimeControl "40/5400+30:1800+30"]

1. e4 {[%emt 0:00:00]} e6 {[%emt 0:00:00]} 2. d4 {[%emt 0:00:00]} d5 {[%emt 0:00:00]} 3. Nd2 {[%emt 0:00:04]} c5 {[%emt 0:00:13]} 4. dxc5 {[%emt 0:02:26]} Bxc5 {[%emt 0:08:32]} 5. exd5 {[%emt 0:00:49]} Qxd5 {[%emt 0:02:40]} 6. Ngf3 {[%emt 0:03:52]} Nf6 {[%emt 0:06:39]} 7. Bc4 {[%emt 0:01:13]} Qh5 {[%emt 0:26:47]} 8. O-O {[%emt 0:09:50]} O-O {[%emt 0:01:29]} 9. Nb3 {[%emt 0:01:56]} Be7 {[%emt 0:05:04]} 10. Qe2 {[%emt 0:02:12]} Nbd7 {[%emt 0:03:49]} 11. Bf4 {[%emt 0:04:08]} b6 {[%emt 0:07:48]} 12. Ne5 {[%emt 0:03:20]} Qxe2 {[%emt 0:08:49]} 1/2-1/2

[Event "SWE-ch 65 2019"]
[Site "Eskilstuna"]
[Date "2019.07.08"]
[Round "3.3"]
[White "Nilsson, Christer"]
[Black "Blomstrom, Lars"]
[Result "1-0"]
[ECO "B15"]
[WhiteElo "1956"]
[BlackElo "2153"]
[Annotator "NA"]
[PlyCount "74"]
[EventDate "2019.07.06"]
[EventType "tourn"]
[EventCountry "SWE"]
[SourceTitle "playchess.com"]
[Source "ChessBase"]
[SourceQuality "1"]
[TimeControl "40/5400+30:1800+30"]

1. e4 {[%emt 0:00:00]} c6 {[%emt 0:00:00]} 2. d4 {[%emt 0:00:00]} d5 {[%emt 0:00:00]} 3. Nc3 {[%emt 0:00:00]} dxe4 {[%emt 0:00:00]} 4. Nxe4 {[%emt 0:00:08]} Nf6 {[%emt 0:00:04]} 5. Nxf6+ {[%emt 0:01:03]} exf6 {[%emt 0:00:02]} 6. c3 {[%emt 0:01:26]} Bd6 {[%emt 0:00:33]} 7. Bd3 {[%emt 0:02:00]} O-O {[%emt 0:01:24]} 8. Ne2 {[%emt 0:03:09]} Re8 {[%emt 0:00:20]} 9. Qc2 {[%emt 0:03:06]} h5 {[%emt 0:09:15]} 10. Be3 {[%emt 0:05:12]} Nd7 {[%emt 0:02:51]} 11. O-O-O {[%emt 0:03:57]} Nf8 {[%emt 0:00:15]} 12. h3 {[%emt 0:06:24]} g6 {[%emt 0:30:21]} 13. Rhe1 {[%emt 0:10:55]} Qc7 {[%emt 0:02:48]} 14. Kb1 {[%emt 0:10:41]} f5 {[%emt 0:05:38]} 15. g3 {[%emt 0:04:23]} Bd7 {[%emt 0:09:35]} 16. Bf4 {[%emt 0:02:06]} Ne6 {[%emt 0:09:11]} 17. Bxd6 {[%emt 0:01:17]} Qxd6 {[%emt 0:00:03]} 18. h4 {[%emt 0:03:30]} Red8 {[%emt 0:06:22]} 19. f4 {[%emt 0:07:50]} Rac8 {[%emt 0:05:35]} 20. Nc1 {[%emt 0:06:45]} a5 {[%emt 0:04:17]} 21. Re5 {[%emt 0:04:59]} b5 {[%emt 0:01:56]} 22. Be2 {[%emt 0:03:01]} f6 {[%emt 0:02:13]} 23. Re3 {[%emt 0:00:13]} Be8 {[%emt 0:03:31]} 24. Bf3 {[%emt 0:01:13]} Bf7 {[%emt 0:00:59]} 25. d5 {[%emt 0:08:41]} cxd5 {[%emt 0:00:02]} 26. Rxd5 {[%emt 0:00:29]} Qb6 {[%emt 0:00:28]} 27. Qe2 {[%emt 0:01:04]} b4 {[%emt 0:02:15]} 28. Rb5 {[%emt 0:00:45]} Qa6 {[%emt 0:00:53]} 29. Bb7 {[%emt 0:00:13]} Qd6 {[%emt 0:01:17]} 30. Bxc8 {[%emt 0:00:20]} Rxc8 {[%emt 0:00:01]} 31. Rxa5 {[%emt 0:02:24]} Nc5 {[%emt 0:00:50]} 32. cxb4 {[%emt 0:01:00]} Ne4 {[%emt 0:00:11]} 33. Qe1 {[%emt 0:02:51]} Nd2+ {[%emt 0:01:28]} 34. Ka1 {[%emt 0:00:44]} Qxb4 {[%emt 0:00:22]} 35. Raa3 {[%emt 0:01:41]} Rc2 {[%emt 0:01:28]} 36. Nb3 {[%emt 0:01:14]} Bxb3 {[%emt 0:00:37]} 37. axb3 {[%emt 0:00:42]} Nxb3+ {[%emt 0:01:03]} 1-0